[Event "Titled Tuesday Blitz August 24 2021"]
[White "Jin, Ashton"]
[Black "Holt, Conrad"]
[WhiteFideId "30931908"]
[BlackFideId "2034387"]
[WhiteElo "2474"]
[BlackElo "2586"]
[Result "0-1"]
[Round "03"]
[TimeControl "180+1"]
[Date "2021.08.24"]
[WhiteClock "0:00:15"]
[BlackClock "0:00:41"]

1. e4 {[%clk 0:03:00]}  e6 {[%clk 0:02:59]} 2. d4 {[%clk 0:03:00]}  d5 {[%clk 0:03:00]} 3. e5 {[%clk 0:03:01]}  c5 {[%clk 0:03:00]} 4. c3 {[%clk 0:03:01]}  Nc6 {[%clk 0:02:59]} 5. Nf3 {[%clk 0:03:01]}  Bd7 {[%clk 0:02:59]} 6. Be2 {[%clk 0:03:01]}  f6 {[%clk 0:02:55]} 7. exf6 {[%clk 0:02:59]}  Nxf6 {[%clk 0:02:55]} 8. O-O {[%clk 0:02:59]}  Bd6 {[%clk 0:02:55]} 9. dxc5 {[%clk 0:02:58]}  Bxc5 {[%clk 0:02:56]} 10. b4 {[%clk 0:02:58]}  Bd6 {[%clk 0:02:55]} 11. a3 {[%clk 0:02:57]}  Qc7 {[%clk 0:02:49]} 12. Nbd2 {[%clk 0:02:39]}  Ne5 {[%clk 0:02:42]} 13. Bb2 {[%clk 0:02:35]}  O-O {[%clk 0:02:24]} 14. Nxe5 {[%clk 0:02:23]}  Bxe5 {[%clk 0:02:25]} 15. Nf3 {[%clk 0:02:23]}  Bf4 {[%clk 0:02:24]} 16. g3 {[%clk 0:02:09]}  Bd6 {[%clk 0:02:23]} 17. Rc1 {[%clk 0:02:08]}  b5 {[%clk 0:02:19]} 18. Nd4 {[%clk 0:02:02]}  a6 {[%clk 0:02:12]} 19. Bf3 {[%clk 0:01:55]}  e5 {[%clk 0:02:07]} 20. Nb3 {[%clk 0:01:55]}  Be6 {[%clk 0:01:59]} 21. Qd2 {[%clk 0:01:45]}  Rad8 {[%clk 0:01:56]} 22. Bg2 {[%clk 0:01:44]}  Kh8 {[%clk 0:01:53]} 23. Ra1 {[%clk 0:01:39]}  Qf7 {[%clk 0:01:47]} 24. Na5 {[%clk 0:01:27]}  Rc8 {[%clk 0:01:31]} 25. a4 {[%clk 0:01:25]}  Bd7 {[%clk 0:01:15]} 26. axb5 {[%clk 0:01:24]}  Bxb5 {[%clk 0:01:14]} 27. Rfd1 {[%clk 0:01:24]}  Ne4 {[%clk 0:01:01]} 28. Qxd5 {[%clk 0:01:16]}  Qxf2+ {[%clk 0:01:00]} 29. Kh1 {[%clk 0:01:16]}  Nxg3+ {[%clk 0:00:59]} 30. hxg3 {[%clk 0:01:16]}  Rf6 {[%clk 0:00:59]} 31. Bh3 {[%clk 0:01:06]}  Qxg3 {[%clk 0:00:53]} 32. Qg2 {[%clk 0:00:58]}  Qh4 {[%clk 0:00:53]} 33. c4 {[%clk 0:00:40]}  Rg6 {[%clk 0:00:52]} 34. Qf1 {[%clk 0:00:36]}  Rf8 {[%clk 0:00:43]} 35. Qxf8+ {[%clk 0:00:14]}  Bxf8 {[%clk 0:00:43]} 36. Rd3 {[%clk 0:00:15]}  Qe4+ {[%clk 0:00:41]} 0-1


[Site "https://www.chess.com"]

[Event "Titled Tuesday Blitz August 24 2021"]
[White "Jumanov, Elbek"]
[Black "Ponikarovsky, Alexey"]
[WhiteFideId "14202905"]
[BlackFideId "4122887"]
[WhiteElo "2067"]
[BlackElo "1944"]
[Result "1/2-1/2"]
[Round "03"]
[TimeControl "180+1"]
[Date "2021.08.24"]
[WhiteClock "0:00:05"]
[BlackClock "0:00:52"]

1. c4 {[%clk 0:03:00]}  c5 {[%clk 0:02:59]} 2. Nf3 {[%clk 0:03:01]}  Nc6 {[%clk 0:03:00]} 3. Nc3 {[%clk 0:03:01]}  e5 {[%clk 0:03:00]} 4. g3 {[%clk 0:03:00]}  Nf6 {[%clk 0:03:01]} 5. Bg2 {[%clk 0:03:00]}  Be7 {[%clk 0:03:01]} 6. O-O {[%clk 0:03:00]}  O-O {[%clk 0:03:02]} 7. a3 {[%clk 0:03:00]}  d6 {[%clk 0:03:02]} 8. Rb1 {[%clk 0:02:59]}  Bf5 {[%clk 0:03:02]} 9. d3 {[%clk 0:02:59]}  Qd7 {[%clk 0:03:02]} 10. Re1 {[%clk 0:02:58]}  Bh3 {[%clk 0:03:02]} 11. Bh1 {[%clk 0:02:57]}  Rab8 {[%clk 0:03:02]} 12. b4 {[%clk 0:02:56]}  cxb4 {[%clk 0:03:03]} 13. axb4 {[%clk 0:02:56]}  a6 {[%clk 0:03:03]} 14. b5 {[%clk 0:02:55]}  axb5 {[%clk 0:03:02]} 15. Nxb5 {[%clk 0:02:54]}  d5 {[%clk 0:03:00]} 16. cxd5 {[%clk 0:02:40]}  Nxd5 {[%clk 0:03:01]} 17. Bb2 {[%clk 0:02:39]}  f6 {[%clk 0:02:59]} 18. e4 {[%clk 0:02:27]}  Nc7 {[%clk 0:02:54]} 19. Nxc7 {[%clk 0:02:25]}  Qxc7 {[%clk 0:02:55]} 20. Qb3+ {[%clk 0:02:19]}  Kh8 {[%clk 0:02:54]} 21. d4 {[%clk 0:02:19]}  exd4 {[%clk 0:02:47]} 22. Nxd4 {[%clk 0:02:18]}  Ne5 {[%clk 0:02:40]} 23. Ne6 {[%clk 0:02:05]}  Bxe6 {[%clk 0:02:38]} 24. Qxe6 {[%clk 0:02:03]}  Bc5 {[%clk 0:02:28]} 25. Red1 {[%clk 0:01:34]}  Rbd8 {[%clk 0:02:25]} 26. Qb3 {[%clk 0:01:02]}  Ng4 {[%clk 0:02:22]} 27. Bf3 {[%clk 0:00:54]}  Nxf2 {[%clk 0:02:19]} 28. Rxd8 {[%clk 0:00:53]}  Rxd8 {[%clk 0:02:19]} 29. Kg2 {[%clk 0:00:42]}  Nd3 {[%clk 0:02:13]} 30. Bc3 {[%clk 0:00:27]}  b6 {[%clk 0:02:08]} 31. Rd1 {[%clk 0:00:25]}  Ne5 {[%clk 0:02:06]} 32. Bxe5 {[%clk 0:00:23]}  fxe5 {[%clk 0:02:02]} 33. Qe6 {[%clk 0:00:19]}  h6 {[%clk 0:01:57]} 34. Rxd8+ {[%clk 0:00:13]}  Qxd8 {[%clk 0:01:58]} 35. Qxe5 {[%clk 0:00:14]}  Qf8 {[%clk 0:01:53]} 36. Qf5 {[%clk 0:00:13]}  Qe7 {[%clk 0:01:47]} 37. e5 {[%clk 0:00:13]}  Qf8 {[%clk 0:01:35]} 38. Qg6 {[%clk 0:00:11]}  Qe7 {[%clk 0:01:33]} 39. Be4 {[%clk 0:00:11]}  Kg8 {[%clk 0:01:32]} 40. e6 {[%clk 0:00:08]}  Kf8 {[%clk 0:01:29]} 41. Qf5+ {[%clk 0:00:07]}  Qf6 {[%clk 0:01:27]} 42. Qxf6+ {[%clk 0:00:07]}  gxf6 {[%clk 0:01:26]} 43. Bd5 {[%clk 0:00:08]}  Ke7 {[%clk 0:01:21]} 44. Kf3 {[%clk 0:00:07]}  Kd6 {[%clk 0:01:21]} 45. Bb3 {[%clk 0:00:07]}  Ke5 {[%clk 0:01:21]} 46. h3 {[%clk 0:00:06]}  Kd4 {[%clk 0:01:20]} 47. Kf4 {[%clk 0:00:06]}  Be7 {[%clk 0:01:15]} 48. Kf5 {[%clk 0:00:06]}  Ke3 {[%clk 0:01:13]} 49. Kg6 {[%clk 0:00:05]}  Kf3 {[%clk 0:01:12]} 50. Kf7 {[%clk 0:00:05]}  Bd6 {[%clk 0:01:11]} 51. e7 {[%clk 0:00:05]}  Bxe7 {[%clk 0:01:11]} 52. Kxe7 {[%clk 0:00:06]}  Kxg3 {[%clk 0:01:12]} 53. Be6 {[%clk 0:00:05]}  b5 {[%clk 0:01:08]} 54. Kxf6 {[%clk 0:00:05]}  h5 {[%clk 0:01:08]} 55. Ke5 {[%clk 0:00:05]}  b4 {[%clk 0:01:03]} 56. Kd4 {[%clk 0:00:05]}  Kf4 {[%clk 0:01:04]} 57. Kc4 {[%clk 0:00:04]}  Ke5 {[%clk 0:01:04]} 58. Bc8 {[%clk 0:00:05]}  b3 {[%clk 0:00:52]} 59. Kxb3 {[%clk 0:00:06]}  Kf6 {[%clk 0:00:52]} 60. Kc3 {[%clk 0:00:06]}  Kg7 {[%clk 0:00:52]} 61. Kd4 {[%clk 0:00:07]}  Kh8 {[%clk 0:00:52]} 62. Ke5 {[%clk 0:00:06]}  Kh7 {[%clk 0:00:52]} 63. Kf5 {[%clk 0:00:05]} 1/2-1/2


[Site "https://www.chess.com"]

[Event "Titled Tuesday Blitz August 24 2021"]
[White "Kadric, Denis"]
[Black "Shtyka, Sergey"]
[WhiteFideId "14403803"]
[BlackFideId "4138465"]
[WhiteElo "2449"]
[BlackElo "2064"]
[Result "1-0"]
[Round "03"]
[TimeControl "180+1"]
[Date "2021.08.24"]
[WhiteClock "0:00:19"]
[BlackClock "0:00:02"]

1. d3 {[%clk 0:03:00]}  c5 {[%clk 0:02:55]} 2. g3 {[%clk 0:02:59]}  Nc6 {[%clk 0:02:55]} 3. Bg2 {[%clk 0:03:00]}  g6 {[%clk 0:02:54]} 4. Nh3 {[%clk 0:02:58]}  Bg7 {[%clk 0:02:53]} 5. O-O {[%clk 0:02:59]}  Nf6 {[%clk 0:02:50]} 6. Nd2 {[%clk 0:02:59]}  O-O {[%clk 0:02:49]} 7. c3 {[%clk 0:02:57]}  d5 {[%clk 0:02:48]} 8. e4 {[%clk 0:02:57]}  dxe4 {[%clk 0:02:42]} 9. dxe4 {[%clk 0:02:58]}  Ne5 {[%clk 0:02:37]} 10. f4 {[%clk 0:02:53]}  Nd3 {[%clk 0:02:34]} 11. e5 {[%clk 0:02:47]}  Ng4 {[%clk 0:02:12]} 12. Ne4 {[%clk 0:02:32]}  c4 {[%clk 0:02:00]} 13. Nhf2 {[%clk 0:02:18]}  Qb6 {[%clk 0:01:55]} 14. h3 {[%clk 0:01:50]}  Ngxf2 {[%clk 0:01:54]} 15. Nxf2 {[%clk 0:01:51]}  Nxb2 {[%clk 0:01:46]} 16. Qe2 {[%clk 0:01:39]}  Nd3 {[%clk 0:01:27]} 17. Be3 {[%clk 0:01:38]}  Qa6 {[%clk 0:01:24]} 18. Nxd3 {[%clk 0:01:03]}  cxd3 {[%clk 0:01:23]} 19. Qb2 {[%clk 0:01:03]}  Rb8 {[%clk 0:01:18]} 20. Rfd1 {[%clk 0:01:02]}  Be6 {[%clk 0:01:13]} 21. a4 {[%clk 0:00:53]}  Bc4 {[%clk 0:01:12]} 22. a5 {[%clk 0:00:53]}  Rfd8 {[%clk 0:01:08]} 23. Qb4 {[%clk 0:00:53]}  Bf8 {[%clk 0:01:05]} 24. Qc5 {[%clk 0:00:52]}  b6 {[%clk 0:00:30]} 25. axb6 {[%clk 0:00:51]}  axb6 {[%clk 0:00:30]} 26. Qc7 {[%clk 0:00:39]}  Qc8 {[%clk 0:00:28]} 27. Bxb6 {[%clk 0:00:39]}  Rd7 {[%clk 0:00:18]} 28. Qxc8 {[%clk 0:00:35]}  Rxc8 {[%clk 0:00:18]} 29. Bd4 {[%clk 0:00:35]}  e6 {[%clk 0:00:17]} 30. Ra8 {[%clk 0:00:27]}  Rxa8 {[%clk 0:00:16]} 31. Bxa8 {[%clk 0:00:27]}  Kg7 {[%clk 0:00:13]} 32. Be4 {[%clk 0:00:28]}  h5 {[%clk 0:00:09]} 33. Kf2 {[%clk 0:00:28]}  h4 {[%clk 0:00:08]} 34. g4 {[%clk 0:00:27]}  Be7 {[%clk 0:00:08]} 35. Ke3 {[%clk 0:00:27]}  Bd8 {[%clk 0:00:05]} 36. Bxd3 {[%clk 0:00:24]}  Bd5 {[%clk 0:00:05]} 37. Be4 {[%clk 0:00:20]}  Bxe4 {[%clk 0:00:05]} 38. Kxe4 {[%clk 0:00:20]}  Bb6 {[%clk 0:00:04]} 39. Rd3 {[%clk 0:00:17]}  Bxd4 {[%clk 0:00:04]} 40. cxd4 {[%clk 0:00:18]}  Ra7 {[%clk 0:00:03]} 41. f5 {[%clk 0:00:18]}  gxf5+ {[%clk 0:00:03]} 42. gxf5 {[%clk 0:00:19]}  exf5+ {[%clk 0:00:04]} 43. Kxf5 {[%clk 0:00:20]}  Ra1 {[%clk 0:00:04]} 44. d5 {[%clk 0:00:19]}  Rf1+ {[%clk 0:00:04]} 45. Kg4 {[%clk 0:00:19]}  Re1 {[%clk 0:00:04]} 46. d6 {[%clk 0:00:20]}  f5+ {[%clk 0:00:03]} 47. Kxh4 {[%clk 0:00:19]}  Re4+ {[%clk 0:00:02]} 48. Kg5 {[%clk 0:00:19]}  Rd4 {[%clk 0:00:02]} 49. Rxd4 {[%clk 0:00:19]} 1-0


[Site "https://www.chess.com"]

[Event "Titled Tuesday Blitz August 24 2021"]
[White "Khamdamova, Afruza"]
[Black "Sonis, Francesco"]
[WhiteFideId "14210444"]
[BlackFideId "895733"]
[WhiteElo "1561"]
[BlackElo "2373"]
[Result "0-1"]
[Round "03"]
[TimeControl "180+1"]
[Date "2021.08.24"]
[WhiteClock "0:01:25"]
[BlackClock "0:02:02"]

1. e4 {[%clk 0:03:00]}  e5 {[%clk 0:02:57]} 2. Nf3 {[%clk 0:03:00]}  Nc6 {[%clk 0:02:52]} 3. Bc4 {[%clk 0:02:59]}  Bc5 {[%clk 0:02:49]} 4. c3 {[%clk 0:02:56]}  Nf6 {[%clk 0:02:48]} 5. d4 {[%clk 0:02:56]}  exd4 {[%clk 0:02:49]} 6. cxd4 {[%clk 0:02:55]}  Bb4+ {[%clk 0:02:49]} 7. Nc3 {[%clk 0:02:55]}  Nxe4 {[%clk 0:02:49]} 8. O-O {[%clk 0:02:55]}  Bxc3 {[%clk 0:02:48]} 9. d5 {[%clk 0:02:55]}  Bf6 {[%clk 0:02:48]} 10. Re1 {[%clk 0:02:55]}  Ne7 {[%clk 0:02:48]} 11. Rxe4 {[%clk 0:02:55]}  d6 {[%clk 0:02:47]} 12. Bg5 {[%clk 0:02:55]}  Bxg5 {[%clk 0:02:47]} 13. Nxg5 {[%clk 0:02:55]}  h6 {[%clk 0:02:47]} 14. Qh5 {[%clk 0:02:51]}  O-O {[%clk 0:02:26]} 15. Rae1 {[%clk 0:02:35]}  Ng6 {[%clk 0:02:06]} 16. Ne6 {[%clk 0:01:52]}  fxe6 {[%clk 0:02:04]} 17. Qxg6 {[%clk 0:01:51]}  e5 {[%clk 0:02:03]} 18. f4 {[%clk 0:01:36]}  Bf5 {[%clk 0:02:02]} 19. Qg3 {[%clk 0:01:29]}  Bxe4 {[%clk 0:02:02]} 20. Rxe4 {[%clk 0:01:29]}  Rxf4 {[%clk 0:02:02]} 21. Rxf4 {[%clk 0:01:29]}  exf4 {[%clk 0:02:03]} 22. Qxf4 {[%clk 0:01:30]}  Qf6 {[%clk 0:02:03]} 23. Qe4 {[%clk 0:01:29]}  Rf8 {[%clk 0:02:03]} 24. h3 {[%clk 0:01:27]}  Qf2+ {[%clk 0:02:01]} 25. Kh2 {[%clk 0:01:27]}  Qf4+ {[%clk 0:02:01]} 26. Qxf4 {[%clk 0:01:25]}  Rxf4 {[%clk 0:02:02]} 0-1


[Site "https://www.chess.com"]

[Event "Titled Tuesday Blitz August 24 2021"]
[White "Kobalia, Mikhail"]
[Black "Harshavardhan G B"]
[WhiteFideId "4119150"]
[BlackFideId "25059009"]
[WhiteElo "2569"]
[BlackElo "1825"]
[Result "0-1"]
[Round "03"]
[TimeControl "180+1"]
[Date "2021.08.24"]
[WhiteClock "0:00:02"]
[BlackClock "0:00:16"]

1. e4 {[%clk 0:02:56]}  c6 {[%clk 0:02:53]} 2. Nf3 {[%clk 0:02:54]}  d5 {[%clk 0:02:53]} 3. exd5 {[%clk 0:02:55]}  cxd5 {[%clk 0:02:53]} 4. Ne5 {[%clk 0:02:55]}  Nd7 {[%clk 0:02:51]} 5. d4 {[%clk 0:02:53]}  Ngf6 {[%clk 0:02:45]} 6. Bd3 {[%clk 0:02:32]}  e6 {[%clk 0:02:40]} 7. Nf3 {[%clk 0:02:31]}  Bd6 {[%clk 0:02:38]} 8. O-O {[%clk 0:02:31]}  O-O {[%clk 0:02:38]} 9. Re1 {[%clk 0:02:30]}  b6 {[%clk 0:02:38]} 10. Nbd2 {[%clk 0:02:29]}  Bb7 {[%clk 0:02:37]} 11. Nf1 {[%clk 0:02:28]}  Ne4 {[%clk 0:02:35]} 12. c3 {[%clk 0:02:26]}  f5 {[%clk 0:02:33]} 13. N3d2 {[%clk 0:02:16]}  e5 {[%clk 0:02:09]} 14. f3 {[%clk 0:02:12]}  Nxd2 {[%clk 0:02:08]} 15. Bxd2 {[%clk 0:02:09]}  e4 {[%clk 0:02:08]} 16. Bc2 {[%clk 0:02:10]}  Qh4 {[%clk 0:01:56]} 17. Qe2 {[%clk 0:01:57]}  Nf6 {[%clk 0:01:52]} 18. Qf2 {[%clk 0:01:54]}  Qh5 {[%clk 0:01:50]} 19. Ng3 {[%clk 0:01:47]}  Qg6 {[%clk 0:01:50]} 20. Ne2 {[%clk 0:01:47]}  Nh5 {[%clk 0:01:47]} 21. a4 {[%clk 0:01:37]}  Kh8 {[%clk 0:01:43]} 22. f4 {[%clk 0:01:35]}  Nf6 {[%clk 0:01:34]} 23. h3 {[%clk 0:01:35]}  a5 {[%clk 0:01:30]} 24. Qh4 {[%clk 0:01:31]}  h6 {[%clk 0:01:24]} 25. Bd1 {[%clk 0:01:26]}  Nh5 {[%clk 0:01:15]} 26. Kh2 {[%clk 0:01:22]}  Rae8 {[%clk 0:01:02]} 27. Ng3 {[%clk 0:01:19]}  Nxg3 {[%clk 0:01:02]} 28. Qxg3 {[%clk 0:01:19]}  Qf7 {[%clk 0:01:02]} 29. h4 {[%clk 0:01:13]}  Rg8 {[%clk 0:00:58]} 30. Qh3 {[%clk 0:01:00]}  g6 {[%clk 0:00:38]} 31. Be3 {[%clk 0:00:59]}  Rg7 {[%clk 0:00:38]} 32. Rf1 {[%clk 0:00:58]}  Kg8 {[%clk 0:00:38]} 33. g3 {[%clk 0:00:57]}  Qe7 {[%clk 0:00:35]} 34. Be2 {[%clk 0:00:56]}  Rf8 {[%clk 0:00:35]} 35. Rf2 {[%clk 0:00:51]}  Bc8 {[%clk 0:00:35]} 36. Rg1 {[%clk 0:00:46]}  g5 {[%clk 0:00:34]} 37. Rff1 {[%clk 0:00:26]}  Bd7 {[%clk 0:00:31]} 38. Bd1 {[%clk 0:00:24]}  Qe8 {[%clk 0:00:30]} 39. Kh1 {[%clk 0:00:19]}  g4 {[%clk 0:00:25]} 40. Qg2 {[%clk 0:00:17]}  Bxa4 {[%clk 0:00:26]} 41. Bxa4 {[%clk 0:00:15]}  Qxa4 {[%clk 0:00:27]} 42. Qe2 {[%clk 0:00:15]}  Rc7 {[%clk 0:00:25]} 43. Ra1 {[%clk 0:00:13]}  Qc4 {[%clk 0:00:25]} 44. Qc2 {[%clk 0:00:12]}  Ra8 {[%clk 0:00:23]} 45. Ra4 {[%clk 0:00:11]}  Qc6 {[%clk 0:00:22]} 46. Rga1 {[%clk 0:00:09]}  Rca7 {[%clk 0:00:22]} 47. c4 {[%clk 0:00:06]}  Rc8 {[%clk 0:00:20]} 48. b3 {[%clk 0:00:06]}  b5 {[%clk 0:00:20]} 49. Rxa5 {[%clk 0:00:06]}  Rxa5 {[%clk 0:00:20]} 50. Rxa5 {[%clk 0:00:06]}  bxc4 {[%clk 0:00:21]} 51. bxc4 {[%clk 0:00:07]}  dxc4 {[%clk 0:00:21]} 52. Rxf5 {[%clk 0:00:06]}  c3 {[%clk 0:00:21]} 53. d5 {[%clk 0:00:05]}  Qc4 {[%clk 0:00:21]} 54. Rf6 {[%clk 0:00:06]}  Qd3 {[%clk 0:00:19]} 55. Qc1 {[%clk 0:00:05]}  Bb4 {[%clk 0:00:18]} 56. Rg6+ {[%clk 0:00:03]}  Kh7 {[%clk 0:00:17]} 57. Rc6 {[%clk 0:00:03]}  Rxc6 {[%clk 0:00:16]} 58. dxc6 {[%clk 0:00:03]}  Bd6 {[%clk 0:00:16]} 59. Kg2 {[%clk 0:00:02]}  c2 {[%clk 0:00:16]} 60. Qd2 {[%clk 0:00:02]}  Bc7 {[%clk 0:00:14]} 61. Qxd3 {[%clk 0:00:01]}  exd3 {[%clk 0:00:15]} 62. Kf1 {[%clk 0:00:01]}  Kg6 {[%clk 0:00:16]} 63. Ke1 {[%clk 0:00:01]}  Kf5 {[%clk 0:00:16]} 64. Kd2 {[%clk 0:00:02]}  Ke4 {[%clk 0:00:17]} 65. Bf2 {[%clk 0:00:01]}  Ba5+ {[%clk 0:00:17]} 66. Kc1 {[%clk 0:00:01]}  Kd5 {[%clk 0:00:17]} 67. f5 {[%clk 0:00:01]}  Kxc6 {[%clk 0:00:17]} 68. Be3 {[%clk 0:00:02]}  h5 {[%clk 0:00:17]} 69. f6 {[%clk 0:00:02]}  Kd6 {[%clk 0:00:16]} 0-1


[Site "https://www.chess.com"]

[Event "Titled Tuesday Blitz August 24 2021"]
[White "Krivonosov, Oleg"]
[Black "Sevian, Samuel"]
[WhiteFideId "11600349"]
[BlackFideId "2040506"]
[WhiteElo "2469"]
[BlackElo "2988"]
[Result "0-1"]
[Round "03"]
[TimeControl "180+1"]
[Date "2021.08.24"]
[WhiteClock "0:00:43"]
[BlackClock "0:02:00"]

1. Nf3 {[%clk 0:03:00]}  g6 {[%clk 0:02:58]} 2. d4 {[%clk 0:03:00]}  Bg7 {[%clk 0:02:58]} 3. c4 {[%clk 0:03:00]}  d6 {[%clk 0:02:58]} 4. Nc3 {[%clk 0:03:00]}  Nd7 {[%clk 0:02:58]} 5. e4 {[%clk 0:02:59]}  e5 {[%clk 0:02:59]} 6. Be2 {[%clk 0:02:59]}  Ne7 {[%clk 0:02:59]} 7. h4 {[%clk 0:02:58]}  h6 {[%clk 0:02:59]} 8. Be3 {[%clk 0:02:57]}  c6 {[%clk 0:02:55]} 9. d5 {[%clk 0:02:51]}  c5 {[%clk 0:02:51]} 10. h5 {[%clk 0:02:51]}  g5 {[%clk 0:02:51]} 11. g4 {[%clk 0:02:46]}  a6 {[%clk 0:02:51]} 12. a4 {[%clk 0:02:42]}  Rb8 {[%clk 0:02:51]} 13. Nh2 {[%clk 0:02:42]}  Ng8 {[%clk 0:02:46]} 14. Nf1 {[%clk 0:02:41]}  Ngf6 {[%clk 0:02:46]} 15. Ng3 {[%clk 0:02:39]}  O-O {[%clk 0:02:47]} 16. f3 {[%clk 0:02:37]}  Ne8 {[%clk 0:02:47]} 17. Nf5 {[%clk 0:02:35]}  Ndf6 {[%clk 0:02:48]} 18. Bd3 {[%clk 0:02:29]}  Nc7 {[%clk 0:02:48]} 19. O-O {[%clk 0:02:26]}  b6 {[%clk 0:02:48]} 20. Rb1 {[%clk 0:02:23]}  Bxf5 {[%clk 0:02:43]} 21. exf5 {[%clk 0:02:22]}  e4 {[%clk 0:02:44]} 22. Nxe4 {[%clk 0:02:19]}  Nxe4 {[%clk 0:02:44]} 23. Bxe4 {[%clk 0:02:18]}  Be5 {[%clk 0:02:44]} 24. b4 {[%clk 0:02:12]}  Ne8 {[%clk 0:02:43]} 25. Qc2 {[%clk 0:02:10]}  Nf6 {[%clk 0:02:43]} 26. a5 {[%clk 0:02:06]}  Nd7 {[%clk 0:02:33]} 27. axb6 {[%clk 0:01:57]}  Rxb6 {[%clk 0:02:34]} 28. bxc5 {[%clk 0:01:55]}  Rxb1 {[%clk 0:02:34]} 29. Rxb1 {[%clk 0:01:54]}  Nxc5 {[%clk 0:02:35]} 30. Qa2 {[%clk 0:01:39]}  Qc7 {[%clk 0:02:28]} 31. Kg2 {[%clk 0:01:37]}  Re8 {[%clk 0:02:28]} 32. Qc2 {[%clk 0:01:25]}  Bf6 {[%clk 0:02:25]} 33. Bf2 {[%clk 0:01:21]}  Kg7 {[%clk 0:02:22]} 34. Be3 {[%clk 0:01:19]}  a5 {[%clk 0:02:12]} 35. Bf2 {[%clk 0:01:19]}  a4 {[%clk 0:02:12]} 36. Bxc5 {[%clk 0:01:15]}  Qxc5 {[%clk 0:02:12]} 37. Qxa4 {[%clk 0:01:15]}  Re7 {[%clk 0:02:08]} 38. Qc6 {[%clk 0:01:09]}  Qe3 {[%clk 0:02:03]} 39. Qxd6 {[%clk 0:00:59]}  Rxe4 {[%clk 0:02:02]} 40. fxe4 {[%clk 0:00:45]}  Qxe4+ {[%clk 0:02:03]} 41. Kf2 {[%clk 0:00:43]}  Bd4+ {[%clk 0:02:00]} 0-1


[Site "https://www.chess.com"]

[Event "Titled Tuesday Blitz August 24 2021"]
[White "Kubicka, Anna"]
[Black "Demchenko, Anton"]
[WhiteFideId "1152254"]
[BlackFideId "4160258"]
[WhiteElo "2010"]
[BlackElo "2583"]
[Result "0-1"]
[Round "03"]
[TimeControl "180+1"]
[Date "2021.08.24"]
[WhiteClock "0:00:02"]
[BlackClock "0:00:09"]

1. e4 {[%clk 0:03:00]}  c5 {[%clk 0:02:53]} 2. Nf3 {[%clk 0:03:00]}  Nc6 {[%clk 0:02:53]} 3. d4 {[%clk 0:03:01]}  cxd4 {[%clk 0:02:54]} 4. Nxd4 {[%clk 0:03:01]}  g6 {[%clk 0:02:54]} 5. c4 {[%clk 0:03:01]}  Bg7 {[%clk 0:02:54]} 6. Be3 {[%clk 0:03:01]}  Nf6 {[%clk 0:02:53]} 7. Nc3 {[%clk 0:03:00]}  d6 {[%clk 0:02:54]} 8. Be2 {[%clk 0:03:00]}  O-O {[%clk 0:02:54]} 9. f3 {[%clk 0:03:00]}  Bd7 {[%clk 0:02:55]} 10. Qd2 {[%clk 0:03:00]}  a6 {[%clk 0:02:48]} 11. O-O {[%clk 0:02:59]}  Nxd4 {[%clk 0:02:43]} 12. Bxd4 {[%clk 0:02:59]}  Bc6 {[%clk 0:02:43]} 13. Be3 {[%clk 0:02:59]}  a5 {[%clk 0:02:40]} 14. b3 {[%clk 0:02:58]}  Nd7 {[%clk 0:02:39]} 15. Rac1 {[%clk 0:02:55]}  Be5 {[%clk 0:02:35]} 16. Rfd1 {[%clk 0:02:53]}  e6 {[%clk 0:02:29]} 17. Bf1 {[%clk 0:02:52]}  Nc5 {[%clk 0:02:16]} 18. Ne2 {[%clk 0:02:47]}  Qh4 {[%clk 0:02:12]} 19. g3 {[%clk 0:02:44]}  Qe7 {[%clk 0:02:07]} 20. Bg2 {[%clk 0:02:32]}  Rfd8 {[%clk 0:02:01]} 21. Bd4 {[%clk 0:02:28]}  b6 {[%clk 0:01:52]} 22. f4 {[%clk 0:02:18]}  Bxd4+ {[%clk 0:01:50]} 23. Qxd4 {[%clk 0:02:19]}  e5 {[%clk 0:01:49]} 24. Qe3 {[%clk 0:02:00]}  exf4 {[%clk 0:01:48]} 25. Nxf4 {[%clk 0:02:01]}  Re8 {[%clk 0:01:36]} 26. Qd4 {[%clk 0:01:51]}  Rad8 {[%clk 0:01:35]} 27. Nd5 {[%clk 0:01:50]}  Bxd5 {[%clk 0:01:35]} 28. exd5 {[%clk 0:01:47]}  Qe3+ {[%clk 0:01:29]} 29. Qxe3 {[%clk 0:01:47]}  Rxe3 {[%clk 0:01:30]} 30. Re1 {[%clk 0:01:43]}  Rde8 {[%clk 0:01:27]} 31. Rxe3 {[%clk 0:01:42]}  Rxe3 {[%clk 0:01:28]} 32. Bf1 {[%clk 0:01:24]}  Ne4 {[%clk 0:01:14]} 33. Kg2 {[%clk 0:01:14]}  f5 {[%clk 0:01:13]} 34. Rc2 {[%clk 0:01:12]}  Kf7 {[%clk 0:01:10]} 35. Be2 {[%clk 0:01:03]}  Kf6 {[%clk 0:01:09]} 36. Bf3 {[%clk 0:01:03]}  Ke5 {[%clk 0:00:55]} 37. Bxe4 {[%clk 0:00:59]}  fxe4 {[%clk 0:00:56]} 38. Kf2 {[%clk 0:00:55]}  Rf3+ {[%clk 0:00:57]} 39. Ke2 {[%clk 0:00:44]}  h5 {[%clk 0:00:57]} 40. Rb2 {[%clk 0:00:37]}  Kd4 {[%clk 0:00:40]} 41. Rd2+ {[%clk 0:00:36]}  Kc5 {[%clk 0:00:39]} 42. Rd1 {[%clk 0:00:27]}  g5 {[%clk 0:00:34]} 43. Re1 {[%clk 0:00:09]}  g4 {[%clk 0:00:29]} 44. Kd2 {[%clk 0:00:07]}  Kd4 {[%clk 0:00:29]} 45. Ke2 {[%clk 0:00:07]}  Ke5 {[%clk 0:00:21]} 46. Kd2 {[%clk 0:00:05]}  h4 {[%clk 0:00:16]} 47. gxh4 {[%clk 0:00:03]}  Rd3+ {[%clk 0:00:17]} 48. Ke2 {[%clk 0:00:02]}  Rh3 {[%clk 0:00:18]} 49. Rh1 {[%clk 0:00:02]}  g3 {[%clk 0:00:08]} 50. Kf1 {[%clk 0:00:02]}  Rxh2 {[%clk 0:00:08]} 51. Rxh2 {[%clk 0:00:01]}  gxh2 {[%clk 0:00:08]} 52. Kg2 {[%clk 0:00:01]}  e3 {[%clk 0:00:09]} 53. Kxh2 {[%clk 0:00:02]}  e2 {[%clk 0:00:09]} 0-1


[Site "https://www.chess.com"]